bitfinex-derivatives/quotes_SOLF0:USTF0_20250613
["timestamp","ask_amount","ask_price","bid_price","bid_amount"]
[1749839332371,6.8794,145.28,145.27,0.05050391]
[1749839332974,6.92618905,145.29,145.27,0.05050391]
[1749839333473,0.04698905,145.29,145.27,0.05050391]
[1749839333866,6.92608905,145.29,145.27,0.05050391]
[1749839334262,0.04698905,145.29,145.27,0.05050391]
[1749839334464,0.04698905,145.29,145.27,11.0880752]
[1749839335775,0.04698905,145.29,145.28,6.8794]
[1749839335976,43.5125,145.37,145.29,11.03757129]
[1749839336277,38.86,145.37,145.31,11.03757129]
[1749839336677,49.89757129,145.37,145.28,38.86]
[1749839336878,0.04795031,145.34,145.31,0.05071173]
[1749839337080,6.8779,145.32,145.31,0.05071173]
[1749839340083,0.04795031,145.34,145.31,0.05071173]
[1749839340084,6.8774,145.33,145.31,0.05071173]
[1749839340381,6.8775,145.32,145.31,0.05071173]
[1749839340871,38.86,145.33,145.25,38.86]
[1749839341073,43.4892,145.33,145.25,38.86]
[1749839342083,6.879,145.29,145.28,0.05083141]
[1749839343184,0.04365361,145.3,145.23,396.44]
[1749839343378,38.86,145.29,145.22,41.0414]
[1749839343678,4.6292,145.33,145.25,11.03757129]
[1749839343679,38.86,145.32,145.25,11.03757129]
[1749839343980,38.86,145.32,145.23,13.41377129]
[1749839344181,0.04848288,145.29,145.26,0.05043141]
[1749839344575,6.8794,145.28,145.26,0.05043141]
[1749839344777,0.04848288,145.29,145.26,0.05043141]
[1749839345385,0.04848288,145.29,145.26,6.93063141]
[1749839345577,0.04848288,145.29,145.26,45.79063141]
[1749839345880,0.04848288,145.29,145.26,38.91043141]
[1749839346083,0.04848288,145.29,145.26,0.05043141]
[1749839346582,6.8799,145.27,145.26,0.05043141]
[1749839346781,0.04848288,145.29,145.26,0.05043141]
[1749839347476,0.04848288,145.29,145.26,6.93073141]
[1749839348284,6.92768288,145.29,145.26,0.05043141]
[1749839348475,0.04848288,145.29,145.26,0.05043141]
[1749839349079,6.8797,145.28,145.26,0.05043141]
[1749839349781,6.8799,145.27,145.26,0.05043141]
[1749839350784,0.04848288,145.29,145.26,11.0880027]
[1749839351387,0.04848288,145.29,145.27,6.8799]
[1749839351585,0.04848288,145.29,145.26,11.0880027]
[1749839351886,6.92768288,145.29,145.26,11.0880027]
[1749839352086,0.04848288,145.29,145.26,0.05043141]
[1749839352285,6.8799,145.27,145.26,0.05043141]
[1749839354288,6.8796,145.28,145.26,0.05043141]
[1749839354788,0.04848288,145.29,145.26,0.05043141]
[1749839354989,6.8799,145.27,145.26,0.05043141]
[1749839356185,0.04848288,145.29,145.26,6.93053141]
[1749839356586,0.04848288,145.29,145.26,0.05043141]
[1749839356889,6.8797,145.28,145.26,0.05043141]
[1749839357091,0.04848288,145.29,145.26,0.05043141]
[1749839357692,6.8798,145.28,145.26,0.05043141]
[1749839358491,6.8799,145.27,145.26,0.05043141]
[1749839359185,6.8813,145.24,145.23,38.86]
[1749839359386,6.8813,145.24,145.2,49.85757129]
[1749839360188,0.0471806,145.23,145.21,0.05025541]
[1749839360688,6.9290806,145.23,145.21,0.05025541]
[1749839360889,0.0471806,145.23,145.21,0.05025541]
[1749839361093,6.8823,145.22,145.21,0.05025541]
[1749839361288,0.0471806,145.23,145.21,0.05025541]
[1749839361590,6.9291806,145.23,145.21,0.05025541]
[1749839362189,6.8823,145.22,145.21,0.05025541]
[1749839362989,6.9291806,145.23,145.21,0.05025541]
[1749839363390,38.82,145.3,145.22,11.03757129]
[1749839363995,38.82,145.3,145.2,49.85757129]
[1749839364195,11.03757129,145.28,145.2,38.82]
[1749839364394,11.03757129,145.26,145.23,0.05207193]
[1749839364595,0.04339999,145.25,145.23,0.05207193]
[1749839364802,6.8817,145.24,145.23,0.05207193]
[1749839371100,6.8842,145.18,145.17,38.84]
[1749839371305,63.61971374,145.26,145.15,2.2085]
[1749839371506,11.01881374,145.24,145.15,2.2085]
[1749839371803,6.8856,145.15,145.14,38.84]
[1749839372000,38.84,145.21,145.14,38.84]
[1749839372304,0.04802325,145.19,145.16,0.0484996]
[1749839373899,6.8847,145.17,145.16,0.0484996]
[1749839378310,6.8843,145.18,145.16,0.0484996]
[1749839378506,0.04802325,145.19,145.16,0.0484996]
[1749839379012,6.8847,145.17,145.16,0.0484996]
[1749839387308,0.04802325,145.19,145.11,49.86821778]
[1749839387513,54.64241778,145.21,145.11,49.86821778]
[1749839388312,0.04649148,145.17,145.15,7.981e-05]
[1749839388514,38.84,145.16,145.15,7.981e-05]
[1749839388713,41.0573,145.16,145.15,7.981e-05]
[1749839388908,47.9373,145.16,145.15,7.981e-05]
[1749839389312,62.27352177,145.16,145.05,48.59632177]
[1749839389612,4.7361,145.15,145.05,48.59632177]
[1749839389912,43.5761,145.15,145.09,7.45112177]
[1749839390112,38.84,145.15,145.11,7.45112177]
[1749839390512,6.8868,145.13,145.12,0.05244339]
[1749839391717,0.04778173,145.14,145.12,0.05244339]
[1749839391924,0.04778173,145.14,145.13,7.45112177]
[1749839392416,0.04778173,145.14,145.13,7.44344062]
[1749839393712,0.04778173,145.14,145.13,14.33004062]
[1749839393913,0.04778173,145.14,145.13,7.44344062]
[1749839395920,0.04778173,145.14,145.13,14.33004062]
[1749839396418,0.04778173,145.14,145.13,7.44344062]
[1749839400222,0.04778173,145.14,145.12,0.05244339]
[1749839400729,41.0943,145.21,145.13,14.33004062]
[1749839401523,38.84,145.21,145.15,7.44344062]
[1749839401820,0.05045787,145.19,145.17,3.903e-05]
[1749839402029,7.44344062,145.18,145.17,3.903e-05]
[1749839402324,12.17072583,145.18,145.1,38.84]
[1749839402528,38.84,145.17,145.11,7.44344062]
[1749839402825,7.44344062,145.16,145.07,46.28344062]
[1749839403023,7.44344062,145.14,145.07,46.28344062]
[1749839403324,6.888,145.1,145.09,0.04497856]
[1749839404626,0.04415813,145.12,145.09,0.04497856]
[1749839405026,6.93145813,145.12,145.09,0.04497856]
[1749839405219,0.04415813,145.12,145.09,0.04497856]
[1749839406526,0.04415813,145.12,145.09,6.93337856]
[1749839406720,0.04415813,145.12,145.09,0.04497856]
[1749839406920,0.04415813,145.12,145.1,11.03533643]
[1749839407116,38.84,145.2,145.11,38.84]
[1749839407916,49.87533643,145.2,145.11,38.84]
[1749839408122,0.04810509,145.17,145.14,0.04775722]
[1749839408323,6.93300509,145.17,145.14,0.04775722]
[1749839408523,0.04810509,145.17,145.14,0.04775722]
[1749839409226,6.8856,145.15,145.14,0.04775722]
[1749839411925,0.04810509,145.17,145.14,11.07466646]
[1749839412320,0.04810509,145.17,145.16,11.02690924]
[1749839412525,38.82,145.23,145.16,11.02083536]
[1749839413028,38.82,145.23,145.15,41.2116]
[1749839413417,0.05131011,145.2,145.15,38.82]
[1749839413928,6.8847,145.17,145.16,0.05037217]
[1749839414315,0.05131011,145.2,145.16,0.05037217]
[1749839416430,41.35426201,145.19,145.11,6.4111617]
[1749839416633,13.55475878,145.18,145.1,38.82]
[1749839417126,43.546,145.19,145.1,56.25199706]
[1749839417624,0.05270815,145.16,145.13,0.04384779]
[1749839417932,6.8861,145.14,145.13,4.779e-05]
[1749839418123,22.59917883,145.14,145.13,4.779e-05]
[1749839418324,20.44209329,145.14,145.13,4.779e-05]
[1749839418530,6.8861,145.14,145.13,4.779e-05]
[1749839428633,14.33321084,145.14,145.13,4.779e-05]
[1749839428929,21.59013934,145.14,145.13,4.779e-05]
[1749839429128,21.59093207,145.14,145.13,4.779e-05]
[1749839429333,11.60534766,145.14,145.13,4.779e-05]
[1749839429527,21.59116818,145.14,145.13,4.779e-05]
[1749839429722,21.59111517,145.14,145.13,4.779e-05]
[1749839429920,21.59112891,145.14,145.13,4.779e-05]
[1749839430124,21.59759259,145.14,145.13,4.779e-05]
[1749839430325,21.60132813,145.14,145.13,4.779e-05]
[1749839430531,16.87535481,145.14,145.13,4.779e-05]
[1749839430730,19.05892699,145.14,145.13,4.779e-05]
[1749839430932,21.60209596,145.14,145.13,4.779e-05]
[1749839431132,19.0594932,145.14,145.13,4.779e-05]
[1749839431332,21.60203618,145.14,145.13,4.779e-05]
[1749839431528,21.59885156,145.14,145.13,4.779e-05]
[1749839431735,28.64717783,145.14,145.13,4.779e-05]
[1749839431935,28.64510139,145.14,145.13,4.779e-05]
[1749839432136,23.9231441,145.14,145.13,4.779e-05]
[1749839432430,26.1046219,145.14,145.13,4.779e-05]
[1749839432635,28.64457163,145.14,145.13,4.779e-05]
[1749839432832,28.64422007,145.14,145.13,4.779e-05]
[1749839433026,26.10428932,145.14,145.13,4.779e-05]
[1749839433230,16.33228524,145.14,145.13,4.779e-05]
[1749839433532,16.3323539,145.14,145.13,4.779e-05]
[1749839433732,23.77864324,145.14,145.13,4.779e-05]
[1749839433927,26.31262352,145.14,145.13,4.779e-05]
[1749839434127,166.94517438,145.14,145.03,4.4814]
[1749839434323,7.44711084,145.08,145.03,2.2476]
[1749839434528,6.8915,145.03,145.0,7.44711084]
[1749839434931,46.26711084,145.08,145.0,7.44711084]
[1749839435127,6.8912,145.04,145.03,0.05236743]
[1749839435943,6.93678415,145.05,145.03,0.05236743]
[1749839436234,0.04638415,145.05,145.03,0.05236743]
[1749839436636,6.93708415,145.05,145.03,0.05236743]
[1749839437039,0.04638415,145.05,145.03,0.05236743]
[1749839437839,0.04638415,145.05,145.03,2.30196743]
[1749839438039,0.04638415,145.05,145.03,9.19326743]
[1749839438241,0.04638415,145.05,145.03,2.30196743]
[1749839438838,0.04638415,145.05,145.03,41.12196743]
[1749839439236,0.04638415,145.05,145.03,48.01306743]
[1749839439437,6.8896,145.07,145.04,7.44711084]
[1749839439741,38.82,145.11,145.04,7.44711084]
[1749839439939,4.71917814,145.1,145.06,7.44711084]
[1749839440240,43.54427081,145.14,145.06,7.44711084]
[1749839440434,6.888,145.1,145.09,0.05234566]
[1749839440637,11.6071975,145.1,145.09,0.05234566]
[1749839440837,6.888,145.1,145.09,0.05234566]
[1749839441034,14.13901527,145.1,145.09,0.05234566]
[1749839441236,14.13900107,145.1,145.09,0.05234566]
[1749839441437,6.888,145.1,145.09,0.05234566]
[1749839441636,14.14088079,145.1,145.09,0.05234566]
[1749839441836,6.888,145.1,145.09,0.05234566]
[1749839442236,6.888,145.1,145.09,4.566e-05]
[1749839442438,45.688,145.1,145.09,4.566e-05]
[1749839442938,43.49546065,145.1,145.0,38.8]
[1749839443136,7.44711084,145.07,145.0,38.8]
[1749839443544,6.8916,145.03,145.0,38.8]
[1749839443933,6.9431789,145.03,145.0,38.84567897]
[1749839444134,6.8921,145.02,145.0,38.84567897]
[1749839444443,0.0515789,145.03,145.0,38.84567897]
[1749839444642,6.8923,145.01,145.0,38.84567897]
[1749839445437,6.8923,145.01,145.0,0.04567897]
[1749839447349,14.33941084,145.01,145.0,7.897e-05]
[1749839447647,6.8922,145.02,145.0,7.897e-05]
[1749839447843,0.0515789,145.03,145.0,7.897e-05]
[1749839448939,6.8926,145.01,145.0,7.897e-05]
[1749839449148,0.0515789,145.03,145.0,7.897e-05]
[1749839451248,38.8,145.11,145.01,49.84903643]
[1749839451439,6.8896,145.08,145.03,17.94023643]
[1749839451639,38.8,145.11,145.03,11.04903643]
[1749839451946,6.8904,145.06,145.03,11.04903643]
[1749839452147,38.8,145.11,145.03,11.04903643]
[1749839452336,0.05290716,145.06,145.03,11.10095291]
[1749839452534,0.05290716,145.06,145.03,17.99215291]
[1749839454351,6.94310716,145.06,145.03,0.05191648]
[1749839454845,0.05290716,145.06,145.03,0.05191648]
[1749839455045,0.05290716,145.06,145.03,6.94321648]
[1749839455247,0.05290716,145.06,145.04,11.04903643]
[1749839455450,18.06060724,145.14,145.05,38.8]
[1749839455451,45.81157081,145.14,145.05,38.8]
[1749839455640,45.81157081,145.14,145.06,11.04903643]
[1749839455846,45.81157081,145.14,145.05,38.8]
[1749839456042,11.04903643,145.12,145.05,38.8]
[1749839456244,11.04903643,145.1,145.02,45.7492]
[1749839456445,0.0443448,145.07,145.05,0.05185691]
[1749839456842,6.8902,145.06,145.05,0.05185691]
[1749839458950,0.0443448,145.07,145.05,0.05185691]
[1749839459252,38.8,145.13,145.06,11.04226393]
[1749839460142,0.0437646,145.11,145.08,0.04591586]
[1749839460342,6.889,145.09,145.08,0.04591586]
[1749839461652,6.889,145.09,145.08,1.586e-05]
[1749839463257,45.689,145.09,145.08,1.586e-05]
[1749839465358,6.889,145.09,145.08,1.586e-05]
[1749839466557,9.2831,145.09,144.97,2.1828]
[1749839466746,11.04358944,145.04,144.96,38.8]
[1749839466950,6.8942,144.98,144.96,38.8]
[1749839467148,49.84358944,145.04,144.96,38.8]
[1749839467451,0.04539899,145.01,144.99,2.307e-05]
[1749839468054,6.893,145.0,144.99,2.307e-05]
[1749839468651,6.93799899,145.01,144.99,2.307e-05]
[1749839468857,0.04539899,145.01,144.99,2.307e-05]
[1749839469358,6.893,145.0,144.99,2.307e-05]
[1749839470546,6.93819899,145.01,144.99,2.307e-05]
[1749839470750,0.04539899,145.01,144.99,2.307e-05]
[1749839471153,6.893,145.0,144.99,2.307e-05]
[1749839474557,6.93819899,145.01,144.99,2.307e-05]
[1749839474759,0.04539899,145.01,144.99,2.307e-05]
[1749839475457,6.893,145.0,144.99,2.307e-05]
[1749839479256,6.8961,144.94,144.9,6.40821004]
[1749839479461,6.8961,144.94,144.89,46.25946142]
[1749839479651,6.8961,144.94,144.89,47.46022743]
[1749839479849,6.8961,144.94,144.9,6.8975]
[1749839480051,7.45946142,144.98,144.89,40.00076601]
[1749839480251,0.05274135,144.95,144.92,0.04981841]
[1749839480757,6.8964,144.93,144.92,0.04981841]
[1749839481157,0.05274135,144.95,144.92,0.04981841]
[1749839481356,0.05274135,144.95,144.93,6.8961]
[1749839481561,0.05274135,144.95,144.93,38.8]
[1749839481862,0.05274135,144.95,144.93,46.26619626]
[1749839482166,0.05274135,144.95,144.93,53.16229626]
[1749839482859,0.05274135,144.95,144.94,6.8959]
[1749839483262,38.8,145.0,144.94,11.05394547]
[1749839483458,41.1753,145.03,144.94,15.74944547]
[1749839483664,6.894,144.98,144.94,15.74944547]
[1749839484061,6.8947,144.97,144.94,15.74944547]
[1749839484261,0.05007313,144.97,144.94,4.74616296]
[1749839484463,0.05007313,144.97,144.94,0.05066296]
[1749839484664,6.8954,144.95,144.94,0.05066296]
[1749839489980,6.8952,144.96,144.94,0.05066296]
[1749839490980,6.8954,144.95,144.94,0.05066296]
[1749839491680,6.8954,144.95,144.94,6.296e-05]
[1749839492082,17.94934547,144.95,144.94,6.296e-05]
[1749839492378,6.8954,144.95,144.94,6.296e-05]
[1749839499093,56.74934547,144.95,144.94,6.296e-05]
[1749839499893,49.85394547,144.95,144.87,38.8]
[1749839500603,38.8,144.95,144.87,38.8]
[1749839500998,0.05012786,144.92,144.9,0.04558264]
[1749839501302,6.8976,144.91,144.9,0.04558264]
[1749839501599,0.05012786,144.92,144.9,0.04558264]
[1749839502598,6.8973,144.91,144.9,0.04558264]
[1749839503896,6.8973,144.91,144.9,8.264e-05]
[1749839504402,56.74896683,144.91,144.9,8.264e-05]
[1749839505194,45.6773,144.91,144.9,8.264e-05]
[1749839505396,53.15137583,144.91,144.9,8.264e-05]
[1749839506304,45.6773,144.91,144.9,8.264e-05]
[1749839506503,53.15137583,144.91,144.9,8.264e-05]
[1749839508405,45.6773,144.91,144.9,8.264e-05]
[1749839518812,6.8973,144.91,144.9,8.264e-05]
[1749839523320,6.8973,144.91,144.9,8.264e-05]
[1749839523514,6.94712786,144.92,144.9,8.264e-05]
[1749839523718,0.05012786,144.92,144.9,8.264e-05]
[1749839523921,2.3221,144.99,144.91,7.47007408]
[1749839523922,38.8,144.99,144.91,7.47007408]
[1749839524120,38.8,144.99,144.91,9.68667408]
[1749839524324,38.8,144.99,144.92,7.46446586]
[1749839524914,6.8957,144.95,144.94,0.05257087]
[1749839525114,0.04380103,144.97,144.94,7.51703673]
[1749839525424,6.8952,144.96,144.94,7.51703673]
[1749839525621,0.04380103,144.97,144.94,7.51703673]
[1749839526125,0.04380103,144.97,144.94,14.41263673]
[1749839526327,0.04380103,144.97,144.94,0.05257087]
[1749839526514,6.8954,144.95,144.94,0.05257087]
[1749839528820,6.8951,144.96,144.94,0.05257087]
[1749839529128,0.04380103,144.97,144.94,7.51703673]
[1749839529329,6.93860103,144.97,144.94,7.51703673]
[1749839529625,0.04380103,144.97,144.94,7.51703673]
[1749839529827,6.8952,144.96,144.94,7.51703673]
[1749839530620,13.7792,145.08,144.95,38.78]
[1749839530825,38.78,145.05,144.98,14.35816586]
[1749839531731,0.05109976,145.03,145.0,0.05206274]
[1749839532224,6.8926,145.01,145.0,0.05206274]
[1749839532624,0.05109976,145.03,145.0,0.05206274]
[1749839533027,0.05109976,145.03,145.0,6.274e-05]
[1749839534630,6.8926,145.01,145.0,6.274e-05]
[1749839535341,45.6526,145.01,145.0,6.274e-05]
[1749839536028,38.76,145.01,144.92,40.9605]
[1749839536336,7.46446586,144.99,144.92,2.2005]
[1749839536528,7.46446586,144.99,144.86,8.47403914]
[1749839536529,7.47468018,144.93,144.86,8.47403914]
[1749839536734,7.47468018,144.93,144.81,1.2012634]
[1749839536735,38.76,144.92,144.82,7.47620958]
[1749839536933,0.05009849,144.88,144.86,0.04865738]
[1749839537330,0.05009849,144.88,144.86,7.52486696]
[1749839537737,38.76,144.92,144.86,7.52486696]
[1749839537933,7.47620958,144.96,144.88,7.47620958]
[1749839537934,38.76,144.95,144.88,7.47620958]
[1749839538739,6.8973,144.92,144.9,0.04479324]
[1749839538937,0.04818114,144.93,144.9,0.04479324]
[1749839539136,6.8973,144.91,144.9,0.04479324]
[1749839542640,6.897,144.92,144.9,0.04479324]
[1749839542843,0.04818114,144.93,144.9,0.04479324]
[1749839543536,6.8973,144.91,144.9,0.04479324]
[1749839545449,6.8973,144.91,144.9,9.324e-05]
[1749839545450,17.96393748,144.91,144.9,9.324e-05]
[1749839545647,17.96393748,144.91,144.84,8.76286092]
[1749839545648,6.9,144.86,144.84,2.3477]
[1749839545954,49.84663748,144.91,144.84,2.3477]
[1749839546447,11.06663748,144.89,144.82,2.3082]
[1749839546651,0.05056179,144.87,144.84,0.04892741]
[1749839546846,6.9002,144.85,144.84,0.04892741]
[1749839547751,17.96683748,144.85,144.84,2.741e-05]
[1749839548355,18.64052874,144.85,144.77,38.78]
[1749839548652,11.06663748,144.83,144.76,2.3735]
[1749839548951,38.78,144.82,144.76,2.3735]
[1749839549342,38.78,144.82,144.75,2.4078]
[1749839549343,6.903,144.79,144.78,0.04428198]
[1749839549956,0.04574601,144.8,144.78,0.04428198]
[1749839550448,6.94834601,144.8,144.78,0.04428198]
[1749839550654,0.04574601,144.8,144.78,0.04428198]
[1749839551055,6.94834601,144.8,144.78,0.04428198]
[1749839551261,0.04574601,144.8,144.78,0.04428198]
[1749839553452,0.04574601,144.8,144.79,6.903]
[1749839553753,436.1,144.89,144.79,38.78]
[1749839553956,6.9,144.86,144.83,11.06663748]
[1749839554256,436.1,144.89,144.83,11.06663748]
[1749839554448,6.9003,144.85,144.83,11.06663748]
[1749839554649,6.9003,144.85,144.83,11.11285444]
[1749839554650,0.05003422,144.85,144.83,11.11285444]
[1749839554854,0.05003422,144.85,144.83,0.04621696]
[1749839555054,6.9006,144.84,144.83,0.04621696]
[1749839557959,0.05003422,144.85,144.83,0.04621696]
[1749839558556,6.9006,144.84,144.83,0.04621696]
[1749839559652,9.64528157,144.84,144.83,0.04621696]
[1749839559851,6.9006,144.84,144.83,0.04621696]
[1749839560654,6.95033422,144.85,144.83,0.04621696]
[1749839560858,0.05003422,144.85,144.83,0.04621696]
[1749839561460,6.9006,144.84,144.83,0.04621696]
[1749839562555,0.05003422,144.85,144.83,0.04621696]
[1749839563259,6.9006,144.84,144.83,0.04621696]
[1749839563654,6.95033422,144.85,144.83,0.04621696]
[1749839563854,0.05003422,144.85,144.83,0.04621696]
[1749839564153,6.9006,144.84,144.83,0.04621696]
[1749839564557,0.05003422,144.85,144.83,0.04621696]
[1749839565850,6.9006,144.84,144.83,0.04621696]
[1749839571468,39.38,144.92,144.83,11.11285444]
[1749839571672,39.38,144.92,144.83,17.96743748]
[1749839571871,39.38,144.92,144.83,11.06663748]
[1749839572472,39.38,144.92,144.86,0.04924009]
[1749839572473,0.04944331,144.89,144.86,0.04924009]
[1749839572677,11.06663748,144.87,144.78,6.9033]
[1749839572965,11.06663748,144.87,144.77,4.6295]
[1749839572966,6.9023,144.81,144.77,4.6295]
[1749839573173,11.06663748,144.85,144.77,4.6295]
[1749839573370,11.06663748,144.83,144.75,41.7729]
[1749839573571,11.06663748,144.81,144.74,2.74915737]
[1749839573763,0.04944189,144.79,144.76,0.04858523]
[1749839574465,6.904,144.77,144.76,0.04858523]
[1749839575373,6.904,144.77,144.74,2.74915737]
[1749839575374,6.9049,144.75,144.74,2.74915737]
[1749839576373,39.38,144.77,144.74,2.74915737]
[1749839576575,0.04632327,144.76,144.74,2.74915737]
[1749839577575,6.95112327,144.76,144.74,2.74915737]
[1749839577960,0.04632327,144.76,144.74,2.74915737]
[1749839578667,0.04632327,144.76,144.75,6.9049]
[1749839578971,39.38,144.83,144.75,11.06663748]
[1749839579766,0.04642279,144.8,144.78,0.0466675]
[1749839579966,6.9031,144.79,144.78,0.0466675]
[1749839580369,50.44663748,144.79,144.74,2.74915737]
[1749839580669,6.9049,144.75,144.74,2.74915737]
[1749839581370,6.9054,144.74,144.73,0.05093032]
[1749839581580,11.06663748,144.75,144.69,6.8276]
[1749839581760,50.46663748,144.75,144.69,6.8276]
[1749839581961,6.9066,144.72,144.69,6.8276]
[1749839582276,50.46663748,144.75,144.65,39.4]
[1749839582468,6.95227813,144.71,144.69,0.04691079]
[1749839582773,0.04517813,144.71,144.69,6.95431079]
[1749839582975,0.04517813,144.71,144.69,0.04691079]
[1749839584968,0.04517813,144.71,144.7,6.9073]
[1749839585571,11.06663748,144.76,144.69,0.04691079]
[1749839585769,11.06663748,144.76,144.66,39.4]
[1749839586074,6.9067,144.72,144.69,6.9078]
[1749839586574,6.95894256,144.72,144.69,6.95465973]
[1749839586875,6.9068,144.71,144.69,0.04685973]
[1749839587779,0.05224256,144.72,144.69,6.95455973]
[1749839588076,0.05224256,144.72,144.69,0.04685973]
[1749839588471,0.05224256,144.72,144.71,6.9068]
[1749839589270,39.4,144.78,144.73,6.9057]
[1749839589472,39.4,144.78,144.7,39.4]
[1749839589668,6.9052,144.75,144.7,39.4]
[1749839590275,0.05190841,144.74,144.71,0.04686508]
[1749839590679,41.6641,144.82,144.73,11.06663748]
[1749839591074,41.6641,144.82,144.74,6.9051]
[1749839591279,41.6641,144.82,144.72,2.3129]
[1749839591575,41.6641,144.82,144.71,13.34243748]
[1749839591576,11.06663748,144.79,144.71,2.2758]
[1749839591778,6.9049,144.75,144.74,0.04758959]
[1749839593178,6.95030572,144.76,144.74,0.04758959]
[1749839593381,0.04570572,144.76,144.74,0.04758959]
[1749839593779,6.9049,144.75,144.74,0.04758959]
[1749839596482,6.9068,144.71,144.68,2.3129]
[1749839596681,11.06663748,144.75,144.66,42.5595]
[1749839596885,40.26,144.74,144.66,40.26]
[1749839597278,11.06663748,144.73,144.66,40.26]
[1749839597479,0.05169368,144.71,144.68,0.04685724]
[1749839597785,6.9076,144.7,144.68,0.04685724]
[1749839598088,0.05169368,144.71,144.68,0.04685724]
[1749839599375,0.05169368,144.71,144.69,6.9075]
[1749839600078,0.05169368,144.71,144.68,0.04685724]
[1749839600385,0.05169368,144.71,144.69,11.06663748]
[1749839600589,40.26,144.77,144.7,40.28]
[1749839600785,40.28,144.8,144.7,42.4643]
[1749839600995,40.28,144.8,144.73,11.06663748]
[1749839601389,58.27473748,144.83,144.73,11.06663748]
[1749839601593,6.9036,144.78,144.77,0.05017617]
[1749839602287,0.04747869,144.79,144.77,0.05017617]
[1749839603186,40.26,144.86,144.77,0.05017617]
[1749839603497,40.26,144.86,144.77,11.06663748]
[1749839603692,40.26,144.86,144.8,6.9024]
[1749839603993,0.04699498,144.84,144.82,0.04859239]
[1749839604390,6.9011,144.83,144.82,0.04859239]
[1749839606389,6.94779498,144.84,144.82,0.04859239]
[1749839607399,0.04699498,144.84,144.82,0.04859239]
[1749839608400,6.94769498,144.84,144.82,0.04859239]
[1749839608900,0.04699498,144.84,144.82,6.95009239]
[1749839609087,0.04699498,144.84,144.82,0.04859239]
[1749839609495,6.9011,144.83,144.82,0.04859239]
[1749839610390,6.94779498,144.84,144.82,0.04859239]
[1749839610701,0.04699498,144.84,144.82,0.04859239]
[1749839611000,6.94799498,144.84,144.82,0.04859239]
[1749839611203,0.04699498,144.84,144.82,0.04859239]
[1749839611396,6.9011,144.83,144.82,0.04859239]
[1749839613897,6.94769498,144.84,144.82,0.04859239]
[1749839614092,0.04699498,144.84,144.82,0.04859239]
[1749839614703,6.9011,144.83,144.82,0.04859239]
[1749839618809,0.04699498,144.84,144.82,0.04859239]
[1749839619402,6.9011,144.83,144.82,0.04859239]
[1749839619611,11.06663748,144.83,144.75,40.26]
[1749839619797,15.53823748,144.83,144.75,40.26]
[1749839619998,6.9034,144.79,144.75,47.1645]
[1749839620314,6.9034,144.79,144.75,40.26]
[1749839620609,40.26,144.85,144.76,0.04746693]
[1749839620610,0.04879887,144.78,144.76,0.04746693]
[1749839620808,0.05196412,144.78,144.76,0.05115637]
[1749839621907,6.904,144.77,144.76,0.05115637]
[1749839622303,0.05196412,144.78,144.76,0.05115637]
[1749839624303,6.904,144.77,144.76,0.05115637]
[1749839624510,0.05196412,144.78,144.76,0.05115637]
[1749839624706,0.05196412,144.78,144.77,6.904]
[1749839624905,40.26,144.84,144.77,6.904]
[1749839625112,40.26,144.84,144.76,11.06663748]
[1749839625305,6.903,144.8,144.76,11.06663748]
[1749839625808,40.26,144.84,144.76,11.06663748]
[1749839625809,0.04347981,144.79,144.78,6.9031]
[1749839626014,0.04865972,144.8,144.78,6.9031]
[1749839628703,6.95125972,144.8,144.78,6.9031]
[1749839630516,6.95125972,144.8,144.77,6.95531041]
[1749839630708,6.9031,144.79,144.77,0.05161041]
[1749839631100,0.04865972,144.8,144.77,6.95531041]
[1749839631308,0.04865972,144.8,144.77,0.05161041]
[1749839631714,0.04865972,144.8,144.77,6.95541041]
[1749839631913,6.95145972,144.8,144.77,6.95541041]
[1749839633104,0.04865972,144.8,144.77,0.05161041]
[1749839633510,6.9035,144.78,144.77,0.05161041]
[1749839636725,11.06663748,144.78,144.7,41.9153]
[1749839637315,11.06663748,144.78,144.71,6.9067]
[1749839637624,0.05089992,144.76,144.73,0.05180533]
[1749839637827,6.9054,144.74,144.73,0.05180533]
[1749839639217,6.9052,144.75,144.73,0.05180533]
[1749839639420,0.05089992,144.76,144.73,6.95740533]
[1749839639622,0.05089992,144.76,144.73,0.05180533]
[1749839640420,6.95559992,144.76,144.73,6.95770533]
[1749839640625,6.95559992,144.76,144.73,0.05180533]
[1749839640927,6.905,144.75,144.73,0.05180533]
[1749839641428,6.95569992,144.76,144.73,6.95740533]
[1749839641724,0.05089992,144.76,144.73,0.05180533]
[1749839641928,6.9054,144.74,144.73,0.05180533]
[1749839643321,14.52765114,144.74,144.73,0.05180533]